fUST/lending_fUST_20240111
["ID","MTS","AMOUNT","RATE_DAILY","PERIOD"]
[311096002,1704902805236,-154.8915759,0.00020979,2]
[311096003,1704902937249,167.600317,0.00019973,2]
[311096004,1704902954131,-154.87609912,0.00020349,2]
[311096005,1704902954156,-154.87609912,0.00020349,4]
[311096006,1704902954180,-19828.39990193,0.00020349,2]
[311096007,1704902954203,-8743.9820779,0.0002035,2]
[311096008,1704902954225,-1322.46,0.00020969,3]
[311096009,1704902954248,-1102.05,0.00020969,3]
[311096010,1704902954271,-918.37,0.00020969,3]
[311096011,1704902954292,-2112.91389925,0.00020977,2]
[311096012,1704902954313,-7940.29516703,0.00020978,2]
[311096013,1704902954339,-34732.98182565,0.00020979,2]
[311096014,1704902966795,154.87609912,0.0001888,3]
[311096015,1704902969101,-765.31,0.00020969,3]
[311096016,1704902969122,-15524.36621,0.00020979,2]
[311096017,1704902988793,154.87609912,0.00018879,3]
[311096018,1704903004787,154.87609912,0.00018878,3]
[311096020,1704903020811,154.87609912,0.00018878,3]
[311096046,1704903035579,-285.7548216,0.00020349,2]
[311096047,1704903035589,-8453.14818245,0.00020349,2]
[311096049,1704903035601,-404.62649935,0.00020349,2]
[311096118,1704903038730,-10970.62522013,0.00020349,2]
[311096120,1704903038739,-8743.9820779,0.0002035,2]
[311096121,1704903038748,-1256.23,0.00020969,3]
[311096123,1704903038758,-1298.1,0.00020969,3]
[311096125,1704903038766,-154.87609912,0.00020975,2]
[311096127,1704903038776,-266.19065175,0.00020976,2]
[311096129,1704903038785,-2245.66927253,0.00020977,2]
[311096131,1704903038794,-7651.98137492,0.00020977,2]
[311096133,1704903038803,-643.32630078,0.00020977,2]
[311096135,1704903038812,-11854.73996868,0.00020977,2]
[311096137,1704903038821,-1533.68702657,0.00020977,2]
[311096139,1704903038831,-2509.67018179,0.00020977,2]
[311096141,1704903038840,-155.44440773,0.00020977,2]
[311096143,1704903038849,-1711.85701986,0.00020977,2]
[311096145,1704903038858,-260.24433646,0.00020977,2]
[311096147,1704903038867,-1926.81688078,0.00020977,5]
[311096149,1704903038876,-155.20374711,0.00020977,2]
[311096151,1704903038885,-155.25349566,0.00020977,2]
[311096153,1704903038895,-469.64064105,0.00020977,2]
[311096155,1704903038906,-260.92582316,0.00020977,2]
[311096157,1704903038915,-167.28389548,0.00020977,2]
[311096159,1704903038924,-162.75529733,0.00020977,2]
[311096161,1704903038933,-24270.25143968,0.00020977,2]
[311096163,1704903038943,-676.96253794,0.00020977,2]
[311096165,1704903038953,-233238.77910181,0.00020979,2]
[311096167,1704903038963,-371.23127172,0.00020979,2]
[311096169,1704903038972,-2079.63666476,0.00020979,2]
[311096171,1704903038982,-619.44144137,0.00020979,2]
[311096173,1704903038991,-300.0,0.00020979,2]
[311096175,1704903039000,-200.0,0.00020979,2]
[311096178,1704903039020,-154.94093055,0.00020979,2]
[311096180,1704903039030,-154.92253873,0.00020979,2]
[311096182,1704903039039,-326.73090334,0.00021,2]
[311096184,1704903039049,-156.86767994,0.00022,2]
[311096186,1704903039058,-4917.8600325,0.00022,2]
[311096188,1704903039068,-3931.75997852,0.00022,2]
[311096190,1704903039077,-292.83058016,0.00022,4]
[311096192,1704903039087,-2093.08732709,0.00023,2]
[311096194,1704903039096,-9920.80434626,0.00023,2]
[311096196,1704903039106,-208.70435716,0.00023288,2]
[311096198,1704903039115,-500.0,0.00023288,2]
[311096200,1704903039124,-616.08476219,0.00023288,2]
[311096202,1704903039133,-500.0,0.00023288,2]
[311096204,1704903039143,-195.47561771,0.00023288,2]
[311096206,1704903039153,-500.0,0.00023288,2]
[311096208,1704903039162,-500.0,0.00023288,2]
[311096210,1704903039172,-500.0,0.00023288,2]
[311096212,1704903039182,-500.0,0.00023288,2]
[311096214,1704903039191,-500.0,0.00023288,2]
[311096216,1704903039200,-226.78467566,0.00023288,2]
[311096218,1704903039210,-500.0,0.00023288,2]
[311096220,1704903039220,-282.23163518,0.00023288,2]
[311096222,1704903039229,-500.0,0.00023288,2]
[311096224,1704903039238,-500.0,0.00023288,2]
[311096226,1704903039248,-500.0,0.00023288,2]
[311096228,1704903039257,-500.0,0.00023288,2]
[311096230,1704903039267,-500.0,0.00023288,2]
[311096232,1704903039276,-500.0,0.00023288,2]
[311096234,1704903039285,-500.0,0.00023288,2]
[311096236,1704903039295,-442.57629407,0.00023998,2]
[311096238,1704903039305,-1990.47166795,0.00024,2]
[311096240,1704903039314,-2293.16748545,0.00024,2]
[311096242,1704903039324,-166.666666,0.00024188,2]
[311096244,1704903039334,-166.666666,0.00024848,2]
[311096246,1704903039343,-4711.08145103,0.00025,2]
[311096248,1704903039352,-3000.0,0.00025,2]
[311096250,1704903039362,-166.666666,0.00025507,2]
[311096252,1704903039371,-525.91402641,0.00026,2]
[311096254,1704903039380,-166.666666,0.00026167,2]
[311096256,1704903039389,-154.8915759,0.00026483,2]
[311096257,1704903039401,-166.666666,0.00026826,2]
[311096260,1704903039411,-733.25771754,0.00027,2]
[311096261,1704903039421,-881.94009009,0.00027396,2]
[311096263,1704903039431,-500.0,0.00027397,2]
[311096265,1704903039445,-500.0,0.00027397,2]
[311096268,1704903039456,-500.0,0.00027397,2]
[311096270,1704903039465,-500.0,0.00027397,2]
[311096272,1704903039474,-503.49423838,0.00027397,2]
[311096274,1704903039484,-500.0,0.00027397,2]
[311096276,1704903039493,-500.0,0.00027397,2]
[311096278,1704903039502,-402.09100132,0.00027397,2]
[311096280,1704903039511,-500.0,0.00027397,2]
[311096281,1704903039522,-231.27172654,0.00027397,2]
[311096284,1704903039532,-501.34716716,0.00027397,2]
[311096286,1704903039541,-503.16131874,0.00027397,2]
[311096287,1704903039551,-522.09370799,0.00027397,2]
[311096290,1704903039561,-502.37533265,0.00027397,2]
[311096292,1704903039570,-500.0,0.00027397,2]
[311096293,1704903039580,-510.22720106,0.00027397,2]
[311096296,1704903039590,-502.85008081,0.00027397,2]
[311096298,1704903039600,-500.0,0.00027397,2]
[311096300,1704903039610,-503.20325283,0.00027397,2]
[311096302,1704903039621,-566.1607247,0.00027397,2]
[311096304,1704903039630,-500.0,0.00027397,2]
[311096306,1704903039641,-500.0,0.00027397,2]
[311096307,1704903039653,-517.01672452,0.00027397,2]
[311096309,1704903039664,-500.0,0.00027397,2]
[311096311,1704903039674,-500.0,0.00027397,2]
[311096313,1704903039684,-500.0,0.00027397,2]
[311096315,1704903039694,-500.0,0.00027397,2]
[311096317,1704903039704,-500.0,0.00027397,2]
[311096320,1704903039714,-502.83552207,0.00027397,2]
[311096321,1704903039723,-500.0,0.00027397,2]
[311096323,1704903039733,-500.0,0.00027397,2]
[311096325,1704903039742,-500.0,0.00027397,2]
[311096327,1704903039752,-500.0,0.00027397,2]
[311096330,1704903039762,-500.0,0.00027397,2]
[311096331,1704903039772,-500.0,0.00027397,2]
[311096333,1704903039781,-500.0,0.00027397,2]
[311096336,1704903039791,-500.0,0.00027397,2]
[311096337,1704903039801,-500.0,0.00027397,2]
[311096339,1704903039811,-500.0,0.00027397,2]
[311096342,1704903039820,-3040.63,0.00027397,2]
[311096344,1704903039829,-583.02535419,0.00027397,2]
[311096346,1704903039839,-500.0,0.00027397,2]
[311096348,1704903039849,-500.0,0.00027397,2]
[311096350,1704903039859,-500.0,0.00027397,2]
[311096352,1704903039868,-500.0,0.00027397,2]
[311096354,1704903039877,-7742.01,0.00027397,2]
[311096356,1704903039886,-500.0,0.00027397,2]
[311096357,1704903039899,-500.0,0.00027397,2]
[311096359,1704903039908,-500.0,0.00027397,2]
[311096362,1704903039918,-973.9,0.00027397,2]
[311096364,1704903039927,-166.666666,0.00027486,2]
[311096366,1704903039936,-8926.84585333,0.0002765,4]
[311096367,1704903039946,-1585.37683133,0.0002765,4]
[311096370,1704903039955,-66214.9287744,0.0002765,4]
[311096372,1704903039966,-500.0,0.00027671,2]
[311096374,1704903039976,-500.0,0.00027671,2]
[311096377,1704903039985,-500.0,0.00027671,2]
[311096379,1704903039994,-500.0,0.00027671,2]
[311096382,1704903040003,-500.0,0.00027671,2]
[311096384,1704903040012,-500.0,0.00027671,2]
[311096386,1704903040022,-500.0,0.00027671,2]
[311096388,1704903040032,-500.0,0.00027671,2]
[311096390,1704903040041,-500.0,0.00027671,2]
[311096392,1704903040051,-3040.63,0.00027671,2]
[311096393,1704903040060,-500.0,0.00027671,2]
[311096396,1704903040070,-7742.01,0.00027671,2]
[311096398,1704903040080,-500.0,0.00027671,2]
[311096399,1704903040090,-500.0,0.00027671,2]
[311096401,1704903040100,-973.9,0.00027671,2]
[311096403,1704903040110,-687.59711705,0.000277,2]
[311096405,1704903040119,-500.0,0.00027943,2]
[311096407,1704903040128,-755.01,0.00027943,2]
[311096409,1704903040138,-500.0,0.00027943,2]
[311096411,1704903040149,-566.74,0.00027943,2]
[311096413,1704903040159,-500.0,0.00027943,2]
[311096415,1704903040169,-553.55,0.00027943,2]
[311096417,1704903040179,-500.0,0.00027943,2]
[311096419,1704903040189,-245.30792768,0.00027943,2]
[311096421,1704903040199,-500.0,0.00027943,2]
[311096423,1704903040208,-511.12548671,0.00027943,2]
[311096426,1704903040218,-500.0,0.00027943,2]
[311096427,1704903040228,-287.98515762,0.00027943,2]
[311096429,1704903040237,-500.0,0.00027943,2]
[311096431,1704903040247,-500.0,0.00027943,2]
[311096434,1704903040257,-500.0,0.00027943,2]
[311096435,1704903040267,-469.88941298,0.00027943,2]
[311096438,1704903040277,-500.0,0.00027943,2]
[311096439,1704903040286,-500.0,0.00027944,2]
[311096441,1704903040295,-500.0,0.00027944,2]
[311096443,1704903040305,-500.0,0.00027944,2]
[311096446,1704903040314,-500.0,0.00027944,2]
[311096447,1704903040324,-500.0,0.00027944,2]
[311096450,1704903040333,-500.0,0.00027944,2]
[311096451,1704903040343,-500.0,0.00027944,2]
[311096453,1704903040353,-709.94,0.00027944,2]
[311096456,1704903040362,-500.0,0.00027944,2]
[311096457,1704903040373,-564.67628536,0.00027944,2]
[311096459,1704903040383,-500.0,0.00027944,2]
[311096461,1704903040393,-346.92,0.00027944,2]
[311096464,1704903040403,-748.05,0.00027944,2]
[311096465,1704903040413,-1048.51,0.00027944,2]
[311096467,1704903040423,-500.0,0.00027944,2]
[311096469,1704903040434,-500.0,0.00027944,2]
[311096471,1704903040445,-1198.08,0.00027944,2]
[311096473,1704903040454,-500.0,0.00027944,2]
[311096476,1704903040463,-162.28174723,0.00027944,2]
[311096477,1704903040473,-500.0,0.00027944,2]
[311096480,1704903040483,-599.20286518,0.00027944,2]
[311096482,1704903040492,-500.0,0.00027944,2]
[311096484,1704903040501,-500.0,0.00027944,2]
[311096486,1704903040511,-500.0,0.00027944,2]
[311096488,1704903040520,-500.0,0.00027944,2]
[311096490,1704903040530,-500.0,0.00027944,2]
[311096492,1704903040539,-500.0,0.00027944,2]
[311096507,1704903040547,-507.63,0.00027944,2]
[311096509,1704903040686,-500.0,0.00027944,2]
[311096511,1704903040696,-500.0,0.00027944,2]
[311096513,1704903040705,-500.0,0.00027944,2]
[311096515,1704903040715,-500.0,0.00027944,2]
[311096517,1704903040724,-500.0,0.00027944,2]
[311096519,1704903040734,-500.0,0.00027944,2]
[311096521,1704903040743,-302.133268,0.00027944,2]
[311096523,1704903040752,-500.0,0.00027944,2]
[311096525,1704903040761,-500.0,0.00027944,2]
[311096527,1704903040771,-500.0,0.00027944,2]
[311096529,1704903040780,-503.36388571,0.00027944,2]
[311096531,1704903040789,-500.0,0.00027945,2]
[311096533,1704903040799,-500.0,0.00027945,2]
[311096535,1704903040808,-500.0,0.00027945,2]
[311096537,1704903040817,-500.0,0.00027945,2]
[311096539,1704903040826,-3040.63,0.00027945,2]
[311096541,1704903040836,-500.0,0.00027945,2]
[311096543,1704903040845,-7742.01,0.00027945,2]
[311096545,1704903040854,-500.0,0.00027945,2]
[311096547,1704903040864,-500.0,0.00027945,2]
[311096549,1704903040873,-973.9,0.00027945,2]
[311096551,1704903040883,-9098.22062588,0.00027955,4]
[311096553,1704903040894,-302.38068407,0.00028216,4]
[311096555,1704903040903,-500.0,0.00028216,4]
[311096557,1704903040912,-256.68594,0.00028216,4]
[311096559,1704903040921,-500.0,0.00028216,4]
[311096561,1704903040931,-500.0,0.00028216,4]
[311096563,1704903040940,-222.77753652,0.00028216,4]
[311096565,1704903040949,-500.0,0.00028216,4]
[311096567,1704903040958,-647.92767237,0.00028216,4]
[311096569,1704903040969,-514.28592865,0.00028216,4]
[311096571,1704903040979,-500.0,0.00028216,4]
[311096573,1704903040988,-500.0,0.00028216,4]
[311096575,1704903040998,-421.14,0.00028217,2]
[311096577,1704903041007,-755.01,0.00028217,2]
[311096579,1704903041017,-500.0,0.00028217,2]
[311096581,1704903041026,-566.74,0.00028217,2]
[311096583,1704903041036,-553.55,0.00028217,2]
[311096585,1704903041045,-500.0,0.00028217,2]
[311096587,1704903041054,-529.27051169,0.00028217,2]
[311096589,1704903041064,-500.0,0.00028217,2]
[311096591,1704903041073,-500.0,0.00028217,2]
[311096593,1704903041083,-500.0,0.00028218,2]
[311096595,1704903041093,-500.0,0.00028218,2]
[311096597,1704903041102,-500.0,0.00028218,2]
[311096599,1704903041112,-500.0,0.00028218,2]
[311096601,1704903041122,-709.94,0.00028218,2]
[311096603,1704903041132,-500.0,0.00028218,2]
[311096605,1704903041143,-500.0,0.00028218,2]
[311096608,1704903041153,-748.05,0.00028218,2]
[311096611,1704903041174,-1048.51,0.00028218,2]
[311096613,1704903041185,-500.0,0.00028218,2]
[311096615,1704903041195,-500.0,0.00028218,2]
[311096617,1704903041205,-1198.08,0.00028218,2]
[311096619,1704903041216,-500.0,0.00028218,2]
[311096621,1704903041226,-500.0,0.00028218,2]
[311096623,1704903041235,-500.0,0.00028218,2]
[311096625,1704903041245,-500.0,0.00028218,2]
[311096627,1704903041254,-500.0,0.00028218,2]
[311096629,1704903041264,-507.63,0.00028218,2]
[311096631,1704903041275,-500.0,0.00028218,2]
[311096633,1704903041286,-500.0,0.00028218,2]
[311096635,1704903041295,-500.0,0.00028218,2]
[311096637,1704903041306,-500.0,0.00028218,2]
[311096639,1704903041316,-500.0,0.00028218,2]
[311096641,1704903041326,-500.0,0.00028219,2]
[311096643,1704903041337,-500.0,0.00028219,2]
[311096645,1704903041347,-3040.63,0.00028219,2]
[311096648,1704903041358,-500.0,0.00028219,2]
[311096650,1704903041379,-7742.01,0.00028219,2]
[311096652,1704903041408,-500.0,0.00028219,2]
[311096653,1704903041418,-565.54,0.00028219,2]
[311096656,1704903041427,-973.9,0.00028219,2]
[311096658,1704903041441,-155.0,0.00028426,2]
[311096660,1704903041450,-755.01,0.00028491,2]
[311096661,1704903041460,-500.0,0.00028491,2]
[311096664,1704903041470,-566.74,0.00028491,2]
[311096666,1704903041482,-553.55,0.00028491,2]
[311096668,1704903041491,-500.0,0.00028491,2]
[311096669,1704903041502,-500.0,0.00028491,2]
[311096672,1704903041513,-500.0,0.00028492,2]
[311096674,1704903041523,-500.0,0.00028492,2]
[311096676,1704903041533,-329.37006486,0.00028492,2]
[311096678,1704903041543,-709.94,0.00028492,2]
[311096679,1704903041552,-500.0,0.00028492,2]
[311096682,1704903041563,-564.88,0.00028492,2]
[311096683,1704903041575,-748.05,0.00028492,2]
[311096686,1704903041585,-1048.51,0.00028492,2]
[311096688,1704903041595,-500.0,0.00028492,2]
[311096690,1704903041605,-500.0,0.00028492,2]
[311096692,1704903041615,-1198.08,0.00028492,2]
[311096694,1704903041624,-500.0,0.00028492,2]
[311096696,1704903041634,-500.0,0.00028492,2]
[311096698,1704903041645,-500.0,0.00028492,2]
[311096700,1704903041655,-500.0,0.00028492,2]
[311096701,1704903041665,-500.0,0.00028492,2]
[311096704,1704903041676,-507.63,0.00028492,2]
[311096705,1704903041685,-500.0,0.00028492,2]
[311096708,1704903041695,-500.0,0.00028492,2]
[311096709,1704903041704,-500.0,0.00028492,2]
[311096711,1704903041714,-500.0,0.00028492,2]
[311096713,1704903041725,-500.0,0.00028493,2]
[311096716,1704903041736,-500.0,0.00028493,2]
[311096718,1704903041747,-3040.63,0.00028493,2]
[311096720,1704903041757,-500.0,0.00028493,2]
[311096722,1704903041767,-7742.01,0.00028493,2]
[311096723,1704903041780,-500.0,0.00028493,2]
[311096725,1704903041790,-973.9,0.00028493,2]
[311096728,1704903041801,-595.62130789,0.00028755,2]
[311096729,1704903041811,-755.01,0.00028765,2]
[311096732,1704903041822,-500.0,0.00028765,2]
[311096734,1704903041833,-566.74,0.00028765,2]
[311096735,1704903041843,-553.55,0.00028765,2]
[311096738,1704903041854,-500.0,0.00028765,2]
[311096739,1704903041864,-500.0,0.00028765,2]
[311096741,1704903041874,-591.96,0.00028766,2]
[311096744,1704903041886,-500.0,0.00028766,2]
[311096746,1704903041899,-709.94,0.00028766,2]
[311096747,1704903041909,-500.0,0.00028766,2]
[311096749,1704903041919,-748.05,0.00028766,2]
[311096752,1704903041929,-1048.51,0.00028766,2]
[311096754,1704903041939,-500.0,0.00028766,2]
[311096756,1704903041949,-500.0,0.00028766,2]
[311096757,1704903041959,-1198.08,0.00028766,2]
[311096760,1704903041969,-581.94597339,0.00028766,2]
[311096762,1704903041978,-500.0,0.00028766,2]
[311096764,1704903041987,-342.7753344,0.00028766,2]
[311096766,1704903041997,-500.0,0.00028766,2]
[311096768,1704903042007,-500.0,0.00028766,2]
[311096770,1704903042017,-507.63,0.00028766,2]
[311096772,1704903042026,-500.0,0.00028766,2]
[311096773,1704903042036,-500.0,0.00028766,2]
[311096775,1704903042046,-500.0,0.00028766,2]
[311096777,1704903042056,-500.0,0.00028767,2]
[311096779,1704903042065,-500.0,0.00028767,2]
[311096782,1704903042075,-3040.63,0.00028767,2]
[311096783,1704903042086,-558.38,0.00028767,2]
[311096786,1704903042096,-7742.01,0.00028767,2]
[311096788,1704903042106,-500.0,0.00028767,2]
[311096789,1704903042115,-973.9,0.00028767,2]
[311096792,1704903042125,-187578.13698,0.00029036,2]
[311096793,1704903042135,-787.43,0.00029036,2]
[311096795,1704903042146,-787.43,0.00029036,2]
[311096797,1704903042156,-787.43,0.00029036,2]
[311096799,1704903042166,-787.43,0.00029036,2]
[311096801,1704903042176,-787.43,0.00029036,2]
[311096804,1704903042185,-787.43,0.00029036,2]
[311096806,1704903042196,-787.43,0.00029036,2]
[311096808,1704903042206,-787.43,0.00029036,2]
[311096810,1704903042216,-787.43,0.00029036,2]
[311096812,1704903042226,-787.43,0.00029036,2]
[311096814,1704903042236,-755.01,0.00029039,2]
[311096816,1704903042246,-502.54,0.00029039,2]
[311096818,1704903042256,-566.74,0.00029039,2]
[311096820,1704903042267,-553.55,0.00029039,2]
[311096822,1704903042276,-500.0,0.00029039,2]
[311096824,1704903042285,-500.0,0.00029039,2]
[311096826,1704903042297,-500.0,0.0002904,2]
[311096828,1704903042306,-709.94,0.0002904,2]
[311096830,1704903042316,-500.0,0.0002904,2]
[311096832,1704903042325,-748.05,0.0002904,2]
[311096834,1704903042336,-1048.51,0.0002904,2]
[311096836,1704903042345,-500.0,0.0002904,2]
[311096838,1704903042354,-500.0,0.0002904,2]
[311096840,1704903042363,-1198.08,0.0002904,2]
[311096842,1704903042372,-500.0,0.0002904,2]
[311096844,1704903042382,-500.0,0.0002904,2]
[311096846,1704903042391,-500.0,0.0002904,2]
[311096848,1704903042403,-507.63,0.0002904,2]
[311096849,1704903042412,-389.96,0.0002904,2]
[311096852,1704903042426,-500.0,0.0002904,2]
[311096854,1704903042436,-500.0,0.0002904,2]
[311096856,1704903042447,-500.0,0.00029041,2]
[311096857,1704903042458,-500.0,0.00029041,2]
[311096859,1704903042468,-3040.63,0.00029041,2]
[311096861,1704903042479,-7742.01,0.00029041,2]
[311096863,1704903042490,-500.0,0.00029041,2]
[311096866,1704903042501,-973.9,0.00029041,2]
[311096867,1704903042510,-755.01,0.00029313,2]
[311096869,1704903042521,-566.74,0.00029313,2]
[311096871,1704903042531,-553.55,0.00029313,2]
[311096874,1704903042541,-500.0,0.00029313,2]
[311096876,1704903042551,-500.0,0.00029313,2]
[311096878,1704903042561,-218.42,0.00029314,2]
[311096880,1704903042571,-709.94,0.00029314,2]
[311096882,1704903042581,-500.0,0.00029314,2]
[311096884,1704903042590,-748.05,0.00029314,2]
[311096885,1704903042601,-1048.51,0.00029314,2]
[311096887,1704903042611,-500.0,0.00029314,2]
[311096889,1704903042621,-500.0,0.00029314,2]
[311096891,1704903042631,-1198.08,0.00029314,2]
[311096893,1704903042640,-500.0,0.00029314,2]
[311096895,1704903042652,-500.0,0.00029314,2]
[311096897,1704903042660,-500.0,0.00029314,2]
[311096899,1704903042670,-507.63,0.00029314,2]
[311096901,1704903042679,-500.0,0.00029314,2]
[311096903,1704903042687,-552.8,0.00029314,2]
[311096905,1704903042697,-500.0,0.00029315,2]
[311096907,1704903042707,-500.0,0.00029315,2]
[311096910,1704903042716,-3040.63,0.00029315,2]
[311096912,1704903042726,-7742.01,0.00029315,2]
[311096914,1704903042735,-500.0,0.00029315,2]
[311096915,1704903042745,-973.9,0.00029315,2]
[311096916,1704903042754,-163.18368332,0.00029326,2]
[311096917,1704903042763,-620.17630143,0.00029369,2]
[311096918,1704903042772,-3313.2630203,0.00029426,2]
[311096919,1704903042782,-1821.85168105,0.00029426,2]
[311096920,1704903042791,-763.40324942,0.00029426,2]
[311096921,1704903042801,-305.01426273,0.00029426,2]
[311096922,1704903042811,-755.01,0.00029587,2]
[311096923,1704903042820,-566.74,0.00029587,2]
[311096924,1704903042829,-553.55,0.00029587,2]
[311096925,1704903042839,-500.0,0.00029587,2]
[311096926,1704903042849,-500.0,0.00029587,2]
[311096927,1704903042858,-709.94,0.00029588,2]
[311096928,1704903042868,-271.25,0.00029588,2]
[311096929,1704903042877,-748.05,0.00029588,2]
[311096930,1704903042887,-1048.51,0.00029588,2]
[311096931,1704903042899,-500.0,0.00029588,2]
[311096933,1704903042908,-500.0,0.00029588,2]
[311096935,1704903042918,-1198.08,0.00029588,2]
[311096937,1704903042928,-500.0,0.00029588,2]
[311096939,1704903042937,-575.6,0.00029588,2]
[311096941,1704903042947,-500.0,0.00029588,2]
[311096943,1704903042956,-507.63,0.00029588,2]
[311096945,1704903042966,-500.0,0.00029588,2]
[311096947,1704903042976,-500.0,0.00029589,2]
[311096950,1704903042985,-500.0,0.00029589,2]
[311096953,1704903042995,-3040.63,0.00029589,2]
[311096956,1704903043005,-7742.01,0.00029589,2]
[311096958,1704903043015,-500.0,0.00029589,2]
[311096960,1704903043025,-973.9,0.00029589,2]
[311096962,1704903043035,-2000.0,0.000296,2]
[311096964,1704903043044,-373.66045,0.000296,14]
[311096966,1704903043054,-2000.0,0.0002961,2]
[311096968,1704903043064,-999.30048966,0.00029613,2]
[311096970,1704903043073,-2000.0,0.0002962,2]
[311096972,1704903043082,-2000.0,0.0002963,2]
[311096974,1704903043092,-2000.0,0.0002964,2]
[311096977,1704903043101,-2000.0,0.0002965,2]
[311096980,1704903043111,-3929.751714,0.0002966,2]
[311096983,1704903043121,-164304.31152291,0.0002979,7]
[311096988,1704903043139,-65130.40270779,0.0002979,7]
[311096991,1704903043150,-254.00672133,0.00029796,2]
[311096994,1704903043159,-755.01,0.00029861,2]
[311096997,1704903043169,-566.74,0.00029861,2]
[311097000,1704903043179,-553.55,0.00029861,2]
[311097003,1704903043188,-500.0,0.00029861,2]
[311097006,1704903043197,-500.0,0.00029861,2]
[311097008,1704903043207,-709.94,0.00029862,2]
[311097011,1704903043216,-748.05,0.00029862,2]
[311097014,1704903043227,-1048.51,0.00029862,2]
[311097018,1704903043236,-500.0,0.00029862,2]
[311097022,1704903043246,-500.0,0.00029862,2]
[311097026,1704903043256,-1198.08,0.00029862,2]
[311097029,1704903043265,-549.04160124,0.00029862,2]
[311097032,1704903043275,-500.0,0.00029862,2]
[311097035,1704903043284,-507.63,0.00029862,2]
[311097037,1704903043293,-500.0,0.00029862,2]
[311097039,1704903043303,-500.0,0.00029863,2]
[311097041,1704903043312,-500.0,0.00029863,2]
[311097043,1704903043321,-3040.63,0.00029863,2]
[311097045,1704903043331,-7742.01,0.00029863,2]
[311097047,1704903043340,-500.0,0.00029863,2]
[311097049,1704903043350,-973.9,0.00029863,2]
[311097061,1704903043464,-5333.46335116,0.000299,2]
[311097063,1704903043474,-236.52252731,0.0003,7]
[311097065,1704903043485,-18048.02930508,0.0003,4]
[311097067,1704903043495,-6973.85683356,0.0003,4]
[311097069,1704903043504,-243.77594457,0.0003,4]
[311097071,1704903043514,-463.38099934,0.0003,4]
[311097073,1704903043523,-154.87609912,0.0003,2]
[311097075,1704903043536,-686.6335406,0.0003,4]
[311097077,1704903043546,-399.65900583,0.0003,4]
[311097079,1704903043554,-639.65046808,0.0003,4]
[311097081,1704903043564,-2754.83813333,0.0003,2]
[311097083,1704903043573,-2188.52939093,0.0003,2]
[311097085,1704903043582,-32780.12501289,0.0003,10]
[311097087,1704903043590,-18548.99519009,0.0003,2]
[311097089,1704903043599,-698.81535711,0.0003,2]
[311097091,1704903043608,-600.0,0.0003,2]
[311097093,1704903043618,-210.0,0.0003,2]
[311097095,1704903043628,-197.35265213,0.0003013,2]
[311097097,1704903043637,-755.01,0.00030135,2]
[311097099,1704903043647,-566.74,0.00030135,2]
[311097101,1704903043656,-553.55,0.00030135,2]
[311097103,1704903043666,-500.0,0.00030135,2]
[311097105,1704903043675,-500.0,0.00030135,2]
[311097106,1704903043683,-500.0,0.00030136,2]
[311097108,1704903043692,-500.0,0.00030136,2]
[311097110,1704903043701,-709.94,0.00030136,2]